[Event "*** Titled Tuesday Blitz"]
[Site "Chess.com"]
[Date "2020.10.27"]
[Round "5"]
[White "Shubinkirill2003"]
[Black "Zq1"]
[Result "1-0"]
[WhiteElo "2674"]
[BlackElo "2491"]
[TimeControl "180+1"]
[EndTime "10:54:24 PDT"]
[Termination "Shubinkirill2003 won by resignation"]

1. e4 {[%clk 0:03:00.9]} 1... c5 {[%clk 0:02:59.6]} 2. Nf3 {[%clk 0:03:00.2]}
2... d6 {[%clk 0:02:59.7]} 3. d4 {[%clk 0:02:59.9]} 3... cxd4 {[%clk 0:02:59.9]}
4. Qxd4 {[%clk 0:03:00.8]} 4... a6 {[%clk 0:02:59.2]} 5. h3 {[%clk 0:03:00]}
5... e6 {[%clk 0:02:57.2]} 6. c4 {[%clk 0:02:58]} 6... Nf6 {[%clk 0:02:56.7]} 7.
Be2 {[%clk 0:02:57]} 7... Be7 {[%clk 0:02:56.4]} 8. O-O {[%clk 0:02:56.8]} 8...
b6 {[%clk 0:02:56.5]} 9. Nc3 {[%clk 0:02:55.5]} 9... Qc7 {[%clk 0:02:52]} 10.
Rd1 {[%clk 0:02:53.3]} 10... Nbd7 {[%clk 0:02:50.7]} 11. Bg5 {[%clk 0:02:50.9]}
11... h6 {[%clk 0:02:45.7]} 12. Bh4 {[%clk 0:02:50.2]} 12... Bb7 {[%clk
0:02:38.9]} 13. Rac1 {[%clk 0:02:48.5]} 13... Rc8 {[%clk 0:02:32.3]} 14. b4
{[%clk 0:02:35.4]} 14... Ne5 {[%clk 0:02:25.5]} 15. Na4 {[%clk 0:02:12.5]} 15...
Nxf3+ {[%clk 0:01:54.4]} 16. Bxf3 {[%clk 0:02:10.9]} 16... e5 {[%clk 0:01:37.2]}
17. Qxb6 {[%clk 0:02:07.8]} 17... Nxe4 {[%clk 0:01:30.4]} 18. Bxe7 {[%clk
0:01:59.6]} 18... Kxe7 {[%clk 0:01:23]} 19. Qe3 {[%clk 0:01:37.2]} 19... f5
{[%clk 0:01:00.1]} 20. Nb6 {[%clk 0:01:36]} 20... Rb8 {[%clk 0:00:47.6]} 21. c5
{[%clk 0:01:28.9]} 21... dxc5 {[%clk 0:00:43.3]} 22. Rd7+ {[%clk 0:01:27.5]}
22... Qxd7 {[%clk 0:00:42.2]} 23. Nxd7 {[%clk 0:01:28.4]} 23... Kxd7 {[%clk
0:00:40.5]} 24. bxc5 {[%clk 0:01:27.8]} 24... Bc6 {[%clk 0:00:35.6]} 25. Bxe4
{[%clk 0:01:26.8]} 25... fxe4 {[%clk 0:00:31.7]} 26. Qd2+ {[%clk 0:01:26.8]}
26... Kc8 {[%clk 0:00:19.4]} 27. Qd6 {[%clk 0:01:27.7]} 27... Bb5 {[%clk
0:00:16.4]} 28. c6 {[%clk 0:01:25.2]} 28... Rd8 {[%clk 0:00:16]} 29. Qe6+ {[%clk
0:01:24.6]} 29... Kc7 {[%clk 0:00:15.9]} 30. Qxe5+ {[%clk 0:01:24.4]} 1-0

[Event "*** Titled Tuesday Blitz"]
[Site "Chess.com"]
[Date "2020.10.27"]
[Round "5"]
[White "crescentmoon2411"]
[Black "BrandonJacobson"]
[Result "1-0"]
[WhiteElo "2855"]
[BlackElo "2942"]
[TimeControl "180+1"]
[EndTime "10:54:36 PDT"]
[Termination "crescentmoon2411 won by resignation"]

1. e4 {[%clk 0:03:00.9]} 1... c5 {[%clk 0:02:59.8]} 2. Nf3 {[%clk 0:03:01]} 2...
Nc6 {[%clk 0:02:59.4]} 3. Bb5 {[%clk 0:03:00.4]} 3... e6 {[%clk 0:02:59.9]} 4.
O-O {[%clk 0:02:57.4]} 4... Nge7 {[%clk 0:03:00.3]} 5. c3 {[%clk 0:02:50.4]}
5... a6 {[%clk 0:03:00.3]} 6. Bd3 {[%clk 0:02:42.9]} 6... b5 {[%clk 0:03:00.2]}
7. Bc2 {[%clk 0:02:40.1]} 7... Bb7 {[%clk 0:03:00.6]} 8. d3 {[%clk 0:02:30.4]}
8... d5 {[%clk 0:02:57.4]} 9. Nbd2 {[%clk 0:02:27.7]} 9... g6 {[%clk 0:02:48.3]}
10. exd5 {[%clk 0:02:25.4]} 10... exd5 {[%clk 0:02:25.3]} 11. Nb3 {[%clk
0:02:22.9]} 11... c4 {[%clk 0:02:06.8]} 12. Nc5 {[%clk 0:02:20.5]} 12... Bc8
{[%clk 0:02:03.9]} 13. dxc4 {[%clk 0:02:12.3]} 13... bxc4 {[%clk 0:01:40.7]} 14.
Nd4 {[%clk 0:02:11.5]} 14... Qd6 {[%clk 0:01:30.9]} 15. Nxc6 {[%clk 0:02:07.6]}
15... Nxc6 {[%clk 0:01:30.7]} 16. Re1+ {[%clk 0:02:07.1]} 16... Be7 {[%clk
0:01:28.2]} 17. Na4 {[%clk 0:02:02.3]} 17... Be6 {[%clk 0:01:26]} 18. Bh6 {[%clk
0:01:54.7]} 18... Bf8 {[%clk 0:01:23.7]} 19. Bxf8 {[%clk 0:01:47.3]} 19... Kxf8
{[%clk 0:01:23.1]} 20. b3 {[%clk 0:01:37]} 20... cxb3 {[%clk 0:01:21.6]} 21.
axb3 {[%clk 0:01:31.8]} 21... Kg7 {[%clk 0:01:20.2]} 22. b4 {[%clk 0:01:28.2]}
22... Rhd8 {[%clk 0:01:09.9]} 23. Nc5 {[%clk 0:01:27]} 23... Bc8 {[%clk
0:01:07.6]} 24. Ba4 {[%clk 0:01:25.3]} 24... d4 {[%clk 0:01:03]} 25. Qf3 {[%clk
0:01:23.4]} 25... dxc3 {[%clk 0:00:10.9]} 26. Bxc6 {[%clk 0:01:20.5]} 26... Rb8
{[%clk 0:00:11.2]} 27. Qxc3+ {[%clk 0:01:20.2]} 27... Qf6 {[%clk 0:00:10.7]} 28.
Qxf6+ {[%clk 0:01:18.3]} 28... Kxf6 {[%clk 0:00:11.6]} 29. Nxa6 {[%clk
0:01:18.2]} 1-0

[Event "*** Titled Tuesday Blitz"]
[Site "Chess.com"]
[Date "2020.10.27"]
[Round "5"]
[White "GameOverBro"]
[Black "wannabe2700"]
[Result "0-1"]
[WhiteElo "2517"]
[BlackElo "2741"]
[TimeControl "180+1"]
[EndTime "10:54:37 PDT"]
[Termination "wannabe2700 won by resignation"]

1. e4 {[%clk 0:02:59.1]} 1... e5 {[%clk 0:02:56.7]} 2. Nf3 {[%clk 0:02:58.7]}
2... Nc6 {[%clk 0:02:56.8]} 3. Bb5 {[%clk 0:02:57.3]} 3... a6 {[%clk 0:02:56.6]}
4. Ba4 {[%clk 0:02:56.1]} 4... Nf6 {[%clk 0:02:56.9]} 5. d4 {[%clk 0:02:56]}
5... exd4 {[%clk 0:02:34]} 6. O-O {[%clk 0:02:55.6]} 6... Be7 {[%clk 0:02:14.4]}
7. e5 {[%clk 0:02:55.6]} 7... Ne4 {[%clk 0:02:12.2]} 8. Nxd4 {[%clk 0:02:56]}
8... Nc5 {[%clk 0:01:36.4]} 9. Nf5 {[%clk 0:02:54.9]} 9... Bf8 {[%clk 0:01:16]}
10. Bxc6 {[%clk 0:02:32]} 10... dxc6 {[%clk 0:01:12.4]} 11. Qf3 {[%clk
0:02:32.9]} 11... Qd5 {[%clk 0:01:07.6]} 12. Qf4 {[%clk 0:02:21.5]} 12... Qe4
{[%clk 0:01:00]} 13. Qxe4 {[%clk 0:02:19]} 13... Nxe4 {[%clk 0:01:00.1]} 14. Re1
{[%clk 0:02:13]} 14... Bxf5 {[%clk 0:00:59.2]} 15. g4 {[%clk 0:02:13.2]} 15...
Bg6 {[%clk 0:00:42.9]} 16. f4 {[%clk 0:02:13.1]} 16... Bc5+ {[%clk 0:00:33.9]}
17. Kg2 {[%clk 0:02:12.6]} 17... f5 {[%clk 0:00:17.5]} 18. exf6 {[%clk
0:02:11.3]} 18... O-O {[%clk 0:00:15.6]} 19. f5 {[%clk 0:02:10.5]} 19... Bf7
{[%clk 0:00:16.1]} 20. fxg7 {[%clk 0:02:06.2]} 20... Rfe8 {[%clk 0:00:16.3]} 21.
Bh6 {[%clk 0:01:43.3]} 21... Bd5 {[%clk 0:00:15.4]} 22. Kf1 {[%clk 0:01:38.7]}
22... Ng3+ {[%clk 0:00:12.5]} 23. hxg3 {[%clk 0:01:36.7]} 23... Bc4+ {[%clk
0:00:12.9]} 24. Kg2 {[%clk 0:01:31.8]} 24... Rxe1 {[%clk 0:00:13.8]} 25. Nd2
{[%clk 0:01:29.8]} 25... Bd5+ {[%clk 0:00:13.1]} 26. Kh3 {[%clk 0:01:28.4]}
26... Rxa1 {[%clk 0:00:14]} 27. g5 {[%clk 0:01:28.5]} 27... Be3 {[%clk
0:00:13.2]} 28. g6 {[%clk 0:01:25.6]} 28... Bxd2 {[%clk 0:00:12.8]} 29. Bxd2
{[%clk 0:01:24.9]} 29... hxg6 {[%clk 0:00:12.7]} 30. fxg6 {[%clk 0:01:23.8]}
30... Kxg7 {[%clk 0:00:13]} 31. b3 {[%clk 0:01:23]} 31... Kxg6 {[%clk
0:00:13.2]} 0-1

[Event "*** Titled Tuesday Blitz"]
[Site "Chess.com"]
[Date "2020.10.27"]
[Round "5"]
[White "Msb2"]
[Black "Witik"]
[Result "1-0"]
[WhiteElo "2914"]
[BlackElo "2699"]
[TimeControl "180+1"]
[EndTime "10:54:41 PDT"]
[Termination "Msb2 won by resignation"]

1. d4 {[%clk 0:03:00.9]} 1... Nf6 {[%clk 0:02:45.3]} 2. Nf3 {[%clk 0:02:58.2]}
2... d6 {[%clk 0:02:44.2]} 3. c4 {[%clk 0:02:57.6]} 3... Nbd7 {[%clk 0:02:43.9]}
4. Nc3 {[%clk 0:02:58]} 4... e5 {[%clk 0:02:44]} 5. Bg5 {[%clk 0:02:58.5]} 5...
Be7 {[%clk 0:02:43.3]} 6. e3 {[%clk 0:02:58.9]} 6... O-O {[%clk 0:02:38.3]} 7.
Be2 {[%clk 0:02:58.5]} 7... c6 {[%clk 0:02:27.7]} 8. Qc2 {[%clk 0:02:58.3]} 8...
Re8 {[%clk 0:02:16.1]} 9. O-O {[%clk 0:02:55.9]} 9... a6 {[%clk 0:01:56.4]} 10.
Rad1 {[%clk 0:02:54.2]} 10... Qc7 {[%clk 0:01:55.5]} 11. b4 {[%clk 0:02:54]}
11... b6 {[%clk 0:01:46.6]} 12. a3 {[%clk 0:02:45]} 12... Bb7 {[%clk 0:01:45.2]}
13. h3 {[%clk 0:02:42.4]} 13... g6 {[%clk 0:01:39.6]} 14. Rd2 {[%clk 0:02:25.2]}
14... e4 {[%clk 0:01:33.7]} 15. Nh2 {[%clk 0:02:08.4]} 15... d5 {[%clk
0:01:32.2]} 16. Rc1 {[%clk 0:02:01.3]} 16... Bd6 {[%clk 0:01:26.3]} 17. Nf1
{[%clk 0:01:57.2]} 17... Rac8 {[%clk 0:01:22.9]} 18. c5 {[%clk 0:01:51.4]} 18...
bxc5 {[%clk 0:01:21.7]} 19. bxc5 {[%clk 0:01:52.3]} 19... Be7 {[%clk 0:01:15.6]}
20. Rb1 {[%clk 0:01:09.3]} 20... Nh5 {[%clk 0:00:54.2]} 21. Bxe7 {[%clk
0:01:06.6]} 21... Rxe7 {[%clk 0:00:55.1]} 22. Bxh5 {[%clk 0:01:05.9]} 22... gxh5
{[%clk 0:00:56]} 23. Qa4 {[%clk 0:01:01.9]} 23... Nf8 {[%clk 0:00:45]} 24. Rdb2
{[%clk 0:00:58.8]} 24... Ba8 {[%clk 0:00:42.5]} 25. Qxa6 {[%clk 0:00:56.4]}
25... Ng6 {[%clk 0:00:40.4]} 26. Qxc8+ {[%clk 0:00:54.2]} 26... Qxc8 {[%clk
0:00:40.6]} 27. Rb8 {[%clk 0:00:55.1]} 27... Re8 {[%clk 0:00:41.2]} 28. Rxc8
{[%clk 0:00:55.2]} 28... Rxc8 {[%clk 0:00:42.1]} 29. Ng3 {[%clk 0:00:54.3]}
29... h4 {[%clk 0:00:41.4]} 30. Nf5 {[%clk 0:00:54.8]} 30... Kf8 {[%clk
0:00:39.2]} 31. a4 {[%clk 0:00:53.7]} 31... Ke8 {[%clk 0:00:37.9]} 32. Nd6+
{[%clk 0:00:53.7]} 1-0

[Event "*** Titled Tuesday Blitz"]
[Site "Chess.com"]
[Date "2020.10.27"]
[Round "5"]
[White "GMJustin"]
[Black "elohunter1999"]
[Result "1-0"]
[WhiteElo "2305"]
[BlackElo "2508"]
[TimeControl "180+1"]
[EndTime "10:54:44 PDT"]
[Termination "GMJustin won by resignation"]

1. c4 {[%clk 0:03:00.7]} 1... c6 {[%clk 0:02:55.4]} 2. Nc3 {[%clk 0:02:55.7]}
2... d5 {[%clk 0:02:55.1]} 3. d4 {[%clk 0:02:55.7]} 3... Nf6 {[%clk 0:02:54.5]}
4. Nf3 {[%clk 0:02:54.8]} 4... dxc4 {[%clk 0:02:53.9]} 5. a4 {[%clk 0:02:52.4]}
5... e6 {[%clk 0:02:53.3]} 6. e4 {[%clk 0:02:42]} 6... Bb4 {[%clk 0:02:52.6]} 7.
e5 {[%clk 0:02:36.9]} 7... Nd5 {[%clk 0:02:52.2]} 8. Bd2 {[%clk 0:02:36.3]} 8...
b5 {[%clk 0:02:48.6]} 9. axb5 {[%clk 0:02:27.2]} 9... Bxc3 {[%clk 0:02:48.4]}
10. bxc3 {[%clk 0:02:27]} 10... cxb5 {[%clk 0:02:48.5]} 11. Ng5 {[%clk
0:02:26.4]} 11... Nc6 {[%clk 0:02:47]} 12. Qh5 {[%clk 0:02:22.3]} 12... Qe7
{[%clk 0:02:46.4]} 13. h4 {[%clk 0:02:11.5]} 13... g6 {[%clk 0:02:21.7]} 14. Qf3
{[%clk 0:02:03.2]} 14... h5 {[%clk 0:02:07.8]} 15. Ne4 {[%clk 0:02:00]} 15...
O-O {[%clk 0:01:51.6]} 16. Bg5 {[%clk 0:01:20.5]} 16... Qd7 {[%clk 0:01:28]} 17.
Nf6+ {[%clk 0:00:58]} 17... Nxf6 {[%clk 0:01:10.1]} 18. Bxf6 {[%clk 0:00:58]}
18... Bb7 {[%clk 0:01:03.9]} 19. Qf4 {[%clk 0:00:50.6]} 19... Ne7 {[%clk
0:00:38.3]} 20. Qh6 {[%clk 0:00:37.4]} 1-0

[Event "*** Titled Tuesday Blitz"]
[Site "Chess.com"]
[Date "2020.10.27"]
[Round "5"]
[White "Mikasinski"]
[Black "IngOscarArdila"]
[Result "1-0"]
[WhiteElo "2499"]
[BlackElo "2171"]
[TimeControl "180+1"]
[EndTime "10:54:44 PDT"]
[Termination "Mikasinski won by resignation"]

1. e4 {[%clk 0:03:00.2]} 1... e5 {[%clk 0:02:59.6]} 2. Nf3 {[%clk 0:02:59.9]}
2... Nc6 {[%clk 0:03:00.1]} 3. Nc3 {[%clk 0:02:58.5]} 3... Nf6 {[%clk
0:02:59.6]} 4. Bb5 {[%clk 0:02:57.9]} 4... Bb4 {[%clk 0:02:59.1]} 5. O-O {[%clk
0:02:57.4]} 5... O-O {[%clk 0:02:58.6]} 6. d3 {[%clk 0:02:57.5]} 6... d6 {[%clk
0:02:58.7]} 7. Bg5 {[%clk 0:02:57]} 7... Bxc3 {[%clk 0:02:58.9]} 8. bxc3 {[%clk
0:02:54.5]} 8... Qe7 {[%clk 0:02:59.4]} 9. Re1 {[%clk 0:02:52.7]} 9... Nd8
{[%clk 0:02:59.5]} 10. d4 {[%clk 0:02:52.8]} 10... Ne6 {[%clk 0:02:59.3]} 11.
Bd2 {[%clk 0:02:52.7]} 11... c6 {[%clk 0:02:23.8]} 12. Bd3 {[%clk 0:02:51.9]}
12... Nd8 {[%clk 0:02:17.8]} 13. h3 {[%clk 0:02:47.5]} 13... Re8 {[%clk
0:02:17.7]} 14. Rb1 {[%clk 0:02:46.9]} 14... b6 {[%clk 0:02:15.3]} 15. c4 {[%clk
0:02:46.4]} 15... c5 {[%clk 0:02:13.3]} 16. c3 {[%clk 0:02:44.1]} 16... Qc7
{[%clk 0:02:05.1]} 17. Qc2 {[%clk 0:02:32.6]} 17... Ne6 {[%clk 0:02:04.6]} 18.
Rbd1 {[%clk 0:02:32.1]} 18... Nh5 {[%clk 0:01:57.6]} 19. Be3 {[%clk 0:02:27.1]}
19... Nhf4 {[%clk 0:01:54.9]} 20. Bf1 {[%clk 0:02:25.6]} 20... Bb7 {[%clk
0:01:48.7]} 21. d5 {[%clk 0:02:22.5]} 21... Nf8 {[%clk 0:01:46.7]} 22. Bxf4
{[%clk 0:02:22.3]} 22... exf4 {[%clk 0:01:46.9]} 23. e5 {[%clk 0:02:20.4]} 23...
Ng6 {[%clk 0:01:41.2]} 24. Qf5 {[%clk 0:02:00.4]} 24... dxe5 {[%clk 0:01:24.5]}
25. d6 {[%clk 0:01:59.9]} 25... Qd8 {[%clk 0:01:18.5]} 26. Nxe5 {[%clk
0:01:54.6]} 26... Nxe5 {[%clk 0:01:18.1]} 27. Rxe5 {[%clk 0:01:54]} 27... Rxe5
{[%clk 0:01:18]} 28. Qxe5 {[%clk 0:01:54.9]} 28... Qf6 {[%clk 0:00:59.2]} 29.
Qe7 {[%clk 0:01:38.5]} 29... Rd8 {[%clk 0:00:41.1]} 30. Qxb7 {[%clk 0:01:31.1]}
30... g5 {[%clk 0:00:35.8]} 31. d7 {[%clk 0:01:26.6]} 31... Kg7 {[%clk 0:00:35]}
32. Qxa7 {[%clk 0:01:25.8]} 32... h5 {[%clk 0:00:32.9]} 33. Rd5 {[%clk
0:01:23.3]} 33... g4 {[%clk 0:00:31.7]} 34. hxg4 {[%clk 0:01:21.3]} 34... hxg4
{[%clk 0:00:31.6]} 35. Qc7 {[%clk 0:01:21.5]} 35... g3 {[%clk 0:00:29.5]} 36.
fxg3 {[%clk 0:01:20.6]} 36... fxg3 {[%clk 0:00:29.3]} 37. Qxg3+ {[%clk
0:01:20.2]} 37... Kf8 {[%clk 0:00:29.1]} 38. Qd6+ {[%clk 0:01:19.7]} 38... Qxd6
{[%clk 0:00:27.8]} 39. Rxd6 {[%clk 0:01:20.6]} 39... Ke7 {[%clk 0:00:28.7]} 40.
Rd2 {[%clk 0:01:18.8]} 1-0

[Event "*** Titled Tuesday Blitz"]
[Site "Chess.com"]
[Date "2020.10.27"]
[Round "5"]
[White "SilviusTiberius"]
[Black "PavelChernomordik"]
[Result "1-0"]
[WhiteElo "2533"]
[BlackElo "2297"]
[TimeControl "180+1"]
[EndTime "10:54:47 PDT"]
[Termination "SilviusTiberius won by resignation"]

1. e4 {[%clk 0:03:00.9]} 1... g6 {[%clk 0:03:00.9]} 2. d4 {[%clk 0:03:00.7]}
2... Bg7 {[%clk 0:02:59.8]} 3. Nc3 {[%clk 0:03:01.2]} 3... d6 {[%clk 0:02:58.7]}
4. Be3 {[%clk 0:03:01.3]} 4... a6 {[%clk 0:02:56.6]} 5. g4 {[%clk 0:03:01.5]}
5... b5 {[%clk 0:02:51.2]} 6. Bg2 {[%clk 0:03:01.8]} 6... Bb7 {[%clk 0:02:50.2]}
7. h4 {[%clk 0:03:02.2]} 7... h6 {[%clk 0:02:47.5]} 8. Nce2 {[%clk 0:02:52.9]}
8... Nf6 {[%clk 0:02:39.9]} 9. Ng3 {[%clk 0:02:51.7]} 9... Qc8 {[%clk
0:02:33.1]} 10. f3 {[%clk 0:02:35.5]} 10... Nbd7 {[%clk 0:02:29.7]} 11. N1e2
{[%clk 0:02:34.1]} 11... c5 {[%clk 0:02:27.9]} 12. c3 {[%clk 0:02:33.9]} 12...
e6 {[%clk 0:02:22.7]} 13. Qd2 {[%clk 0:02:32.6]} 13... Nb6 {[%clk 0:02:19.7]}
14. b3 {[%clk 0:02:32.1]} 14... Nfd7 {[%clk 0:02:18.3]} 15. f4 {[%clk
0:02:22.5]} 15... Nf6 {[%clk 0:02:06.7]} 16. g5 {[%clk 0:02:08]} 16... Ng4
{[%clk 0:02:02.6]} 17. Bf3 {[%clk 0:02:00.2]} 17... Nxe3 {[%clk 0:02:00.8]} 18.
Qxe3 {[%clk 0:02:01.1]} 18... Nd7 {[%clk 0:01:33.9]} 19. f5 {[%clk 0:01:57.3]}
19... cxd4 {[%clk 0:01:15.6]} 20. cxd4 {[%clk 0:01:56.1]} 20... hxg5 {[%clk
0:01:06.1]} 21. hxg5 {[%clk 0:01:53.9]} 21... Rxh1+ {[%clk 0:01:05.2]} 22. Bxh1
{[%clk 0:01:51.4]} 22... gxf5 {[%clk 0:00:56.7]} 23. exf5 {[%clk 0:01:45.2]}
23... Bxh1 {[%clk 0:00:55.2]} 24. fxe6 {[%clk 0:01:40.4]} 24... Bd5 {[%clk
0:00:49.8]} 25. Rc1 {[%clk 0:01:32.2]} 25... Qb7 {[%clk 0:00:45.3]} 26. Nf5
{[%clk 0:01:28.1]} 26... fxe6 {[%clk 0:00:37.6]} 27. Nxd6+ {[%clk 0:01:26.7]}
27... Ke7 {[%clk 0:00:36.2]} 28. Nxb7 {[%clk 0:01:26.5]} 28... Bxb7 {[%clk
0:00:33.6]} 29. Rc7 {[%clk 0:01:21]} 29... Bd5 {[%clk 0:00:32.1]} 30. Nf4 {[%clk
0:01:21.3]} 30... Kd6 {[%clk 0:00:30]} 31. Nxd5 {[%clk 0:01:18.6]} 31... exd5
{[%clk 0:00:28.6]} 32. Qf4+ {[%clk 0:01:11.2]} 32... Ke6 {[%clk 0:00:26.9]} 33.
Rxd7 {[%clk 0:01:08.4]} 1-0

[Event "*** Titled Tuesday Blitz"]
[Site "Chess.com"]
[Date "2020.10.27"]
[Round "5"]
[White "Andrakhanova"]
[Black "Fischerev7"]
[Result "0-1"]
[WhiteElo "2240"]
[BlackElo "2418"]
[TimeControl "180+1"]
[EndTime "10:54:48 PDT"]
[Termination "Fischerev7 won by resignation"]

1. c4 {[%clk 0:02:48.9]} 1... Nf6 {[%clk 0:02:55.7]} 2. Nc3 {[%clk 0:02:48.4]}
2... e5 {[%clk 0:02:53.3]} 3. g3 {[%clk 0:02:47.9]} 3... d5 {[%clk 0:02:52.7]}
4. cxd5 {[%clk 0:02:47.2]} 4... Nxd5 {[%clk 0:02:53.6]} 5. Bg2 {[%clk
0:02:47.2]} 5... Be6 {[%clk 0:02:49.6]} 6. Nf3 {[%clk 0:02:46]} 6... Nc6 {[%clk
0:02:49.4]} 7. O-O {[%clk 0:02:44.5]} 7... Be7 {[%clk 0:02:49.4]} 8. d4 {[%clk
0:02:44.2]} 8... Nxc3 {[%clk 0:02:24.5]} 9. bxc3 {[%clk 0:02:43.5]} 9... exd4
{[%clk 0:02:24.5]} 10. cxd4 {[%clk 0:02:44.4]} 10... Bd5 {[%clk 0:02:23.7]} 11.
Re1 {[%clk 0:02:42.1]} 11... Bb4 {[%clk 0:02:14.6]} 12. Bd2 {[%clk 0:02:41.2]}
12... Bxd2 {[%clk 0:02:13.9]} 13. Qxd2 {[%clk 0:02:42.1]} 13... Be4 {[%clk
0:02:03.2]} 14. Ne5 {[%clk 0:02:29.3]} 14... Bxg2 {[%clk 0:02:00.7]} 15. Kxg2
{[%clk 0:02:30.2]} 15... Qxd4 {[%clk 0:01:55.8]} 16. Qxd4 {[%clk 0:02:29.2]}
16... Nxd4 {[%clk 0:01:55.5]} 17. Red1 {[%clk 0:02:19.3]} 17... Ne6 {[%clk
0:01:33.7]} 18. f4 {[%clk 0:01:58.8]} 18... f6 {[%clk 0:01:32.9]} 19. Nc4 {[%clk
0:01:50.1]} 19... Ke7 {[%clk 0:01:32.6]} 20. Rab1 {[%clk 0:01:46.8]} 20... b6
{[%clk 0:01:32.4]} 21. e4 {[%clk 0:01:44]} 21... Rhd8 {[%clk 0:01:31.4]} 22. e5
{[%clk 0:01:42.2]} 22... Rxd1 {[%clk 0:01:20.2]} 23. Rxd1 {[%clk 0:01:41.3]}
23... Rd8 {[%clk 0:01:20.7]} 24. Re1 {[%clk 0:01:37.5]} 24... f5 {[%clk
0:01:13.2]} 25. Rc1 {[%clk 0:01:27.4]} 25... Rd3 {[%clk 0:01:05.2]} 26. a4
{[%clk 0:01:23.3]} 26... Nc5 {[%clk 0:00:58.2]} 27. a5 {[%clk 0:01:18.6]} 27...
Nb3 {[%clk 0:00:56.8]} 28. axb6 {[%clk 0:01:05.6]} 28... axb6 {[%clk 0:00:24.9]}
29. Nxb6 {[%clk 0:01:01.6]} 29... Nxc1 {[%clk 0:00:17.9]} 0-1

[Event "*** Titled Tuesday Blitz"]
[Site "Chess.com"]
[Date "2020.10.27"]
[Round "5"]
[White "bazar-wokzal"]
[Black "Michaelson_11"]
[Result "1-0"]
[WhiteElo "2491"]
[BlackElo "2132"]
[TimeControl "180+1"]
[EndTime "10:54:52 PDT"]
[Termination "bazar-wokzal won by resignation"]

1. e4 {[%clk 0:02:59.3]} 1... c5 {[%clk 0:02:58.3]} 2. c3 {[%clk 0:02:59]} 2...
Nf6 {[%clk 0:02:56.8]} 3. e5 {[%clk 0:02:59.1]} 3... Nd5 {[%clk 0:02:57.4]} 4.
d4 {[%clk 0:02:59.6]} 4... Nc6 {[%clk 0:02:56.5]} 5. Bc4 {[%clk 0:02:48.3]} 5...
Nb6 {[%clk 0:02:54]} 6. Bxf7+ {[%clk 0:02:45.6]} 6... Kxf7 {[%clk 0:02:53.8]} 7.
dxc5 {[%clk 0:02:45.8]} 7... Nxe5 {[%clk 0:02:41.3]} 8. Qh5+ {[%clk 0:02:26.1]}
8... Ng6 {[%clk 0:02:26.6]} 9. cxb6 {[%clk 0:02:22.6]} 9... Qxb6 {[%clk
0:02:25]} 10. Nf3 {[%clk 0:02:22.7]} 10... Qe6+ {[%clk 0:01:20]} 11. Be3 {[%clk
0:02:18.8]} 11... Ke8 {[%clk 0:01:16.8]} 12. O-O {[%clk 0:02:17]} 12... d6
{[%clk 0:01:10.2]} 13. Na3 {[%clk 0:02:15.1]} 13... Bd7 {[%clk 0:00:54.5]} 14.
Rfe1 {[%clk 0:02:13.7]} 14... Qg4 {[%clk 0:00:52.5]} 15. Qa5 {[%clk 0:01:47.4]}
15... Bc6 {[%clk 0:00:45]} 16. h3 {[%clk 0:01:47.5]} 16... Qd7 {[%clk
0:00:42.3]} 17. Nd4 {[%clk 0:01:42.7]} 17... e5 {[%clk 0:00:32.4]} 18. Nxc6
{[%clk 0:01:33.9]} 18... bxc6 {[%clk 0:00:33.3]} 19. Rad1 {[%clk 0:01:30.5]}
19... Be7 {[%clk 0:00:25.3]} 20. Nc4 {[%clk 0:01:25]} 20... Qe6 {[%clk
0:00:11.1]} 21. Qa4 {[%clk 0:01:17.5]} 21... Kd7 {[%clk 0:00:05.4]} 22. Nxd6
{[%clk 0:01:06.4]} 22... Bxd6 {[%clk 0:00:05.1]} 23. Bc5 {[%clk 0:01:06.6]}
23... Kc7 {[%clk 0:00:05]} 24. Rxd6 {[%clk 0:01:03]} 24... Qf5 {[%clk
0:00:03.8]} 25. Qxc6+ {[%clk 0:01:00.4]} 1-0

[Event "*** Titled Tuesday Blitz"]
[Site "Chess.com"]
[Date "2020.10.27"]
[Round "5"]
[White "SamuelGhimpu2003"]
[Black "Arseniy_Nesterov"]
[Result "0-1"]
[WhiteElo "2617"]
[BlackElo "2802"]
[TimeControl "180+1"]
[EndTime "10:54:56 PDT"]
[Termination "Arseniy_Nesterov won on time"]

1. d4 {[%clk 0:03:00.9]} 1... d5 {[%clk 0:02:58.3]} 2. Nc3 {[%clk 0:02:58.7]}
2... Bf5 {[%clk 0:02:57]} 3. Bf4 {[%clk 0:02:56.2]} 3... e6 {[%clk 0:02:51.9]}
4. f3 {[%clk 0:02:51.6]} 4... Bd6 {[%clk 0:02:50.5]} 5. Bxd6 {[%clk 0:02:50.5]}
5... cxd6 {[%clk 0:02:48.1]} 6. e4 {[%clk 0:02:29.3]} 6... dxe4 {[%clk
0:02:45.1]} 7. fxe4 {[%clk 0:02:30.2]} 7... Bg6 {[%clk 0:02:44.8]} 8. Bb5+
{[%clk 0:02:24.4]} 8... Nd7 {[%clk 0:02:42.1]} 9. Nf3 {[%clk 0:02:21.1]} 9... a6
{[%clk 0:02:41.4]} 10. Bd3 {[%clk 0:02:20.5]} 10... Ne7 {[%clk 0:02:37.5]} 11.
O-O {[%clk 0:02:10.6]} 11... O-O {[%clk 0:02:34.6]} 12. Ne2 {[%clk 0:02:07]}
12... e5 {[%clk 0:02:28.5]} 13. c3 {[%clk 0:02:03.7]} 13... d5 {[%clk
0:02:20.6]} 14. Nxe5 {[%clk 0:01:47.2]} 14... Nxe5 {[%clk 0:02:16.7]} 15. dxe5
{[%clk 0:01:48.1]} 15... Qb6+ {[%clk 0:02:15.4]} 16. Kh1 {[%clk 0:01:45.9]}
16... dxe4 {[%clk 0:02:15.6]} 17. Bc4 {[%clk 0:01:42.4]} 17... Rad8 {[%clk
0:02:04.3]} 18. Nd4 {[%clk 0:01:21.5]} 18... Qxb2 {[%clk 0:01:49.9]} 19. Qb3
{[%clk 0:00:20.2]} 19... Qxb3 {[%clk 0:01:46.7]} 20. axb3 {[%clk 0:00:21.1]}
20... b5 {[%clk 0:01:26.7]} 21. Be2 {[%clk 0:00:20.4]} 21... b4 {[%clk 0:01:27]}
22. Rxa6 {[%clk 0:00:07.7]} 22... bxc3 {[%clk 0:01:25.8]} 23. Nb5 {[%clk
0:00:07.3]} 23... c2 {[%clk 0:01:22.1]} 24. Rc1 {[%clk 0:00:02.9]} 24... Rd2
{[%clk 0:01:19.9]} 25. Nc3 {[%clk 0:00:03.6]} 25... Rc8 {[%clk 0:01:17.5]} 26.
Bc4 {[%clk 0:00:04.2]} 26... e3 {[%clk 0:01:12.4]} 27. Kg1 {[%clk 0:00:04.7]}
27... Kf8 {[%clk 0:01:05.7]} 28. Ra2 {[%clk 0:00:04.5]} 28... Nc6 {[%clk
0:01:04.3]} 0-1